bitfinex-derivatives/quotes_BTCF0:USTF0_20241006
["timestamp","ask_amount","ask_price","bid_price","bid_amount"]
[1728223359053,0.0661,62234.0,62233.0,0.11823825]
[1728223359255,0.130376,62234.0,62233.0,0.11823825]
[1728223359950,0.1761,62234.0,62231.0,0.064279]
[1728223360153,0.240376,62234.0,62233.0,0.0963683]
[1728223361352,0.240376,62234.0,62227.0,0.36268]
[1728223361353,0.06428,62231.0,62227.0,0.36268]
[1728223361559,0.06428,62231.0,62228.0,0.1825284]
[1728223361747,0.06428,62231.0,62229.0,0.1182464]
[1728223361948,0.06428,62231.0,62230.0,0.1182464]
[1728223363154,0.17528,62231.0,62230.0,0.1182464]
[1728223363351,0.17528,62231.0,62230.0,0.21747569]
[1728223363756,0.17628,62231.0,62230.0,0.21747569]
[1728223364061,0.112,62231.0,62230.0,0.28175569]
[1728223364262,0.111,62231.0,62230.0,0.28175569]
[1728223364454,0.112,62231.0,62230.0,0.28175569]
[1728223364654,0.112,62231.0,62230.0,0.16350929]
[1728223365659,0.112,62231.0,62230.0,0.06428]
[1728223370059,0.112,62231.0,62230.0,0.16350975]
[1728223370265,0.112,62231.0,62230.0,0.06428]
[1728223370568,0.112,62231.0,62230.0,0.16350975]
[1728223373666,0.112,62231.0,62230.0,0.2818234]
[1728223374559,0.112,62231.0,62230.0,0.53161295]
[1728223375162,0.112,62231.0,62230.0,0.53166514]
[1728223375961,0.112,62231.0,62230.0,0.2818712]
[1728223377675,0.002,62231.0,62230.0,0.2818712]
[1728223377881,0.112,62231.0,62230.0,0.2818712]
[1728223378966,0.002,62231.0,62230.0,0.2175912]
[1728223379166,0.112,62231.0,62230.0,0.2175912]
[1728223379879,0.112,62231.0,62230.0,0.3471712]
[1728223380180,0.112,62231.0,62230.0,0.59662589]
[1728223380363,0.112,62231.0,62230.0,0.45942516]
[1728223380773,0.112,62231.0,62230.0,0.34701024]
[1728223382180,0.06376066,62231.0,62230.0,0.48432515]
[1728223384973,0.06376066,62231.0,62230.0,0.50789203]
[1728223385378,0.0112,62235.0,62230.0,0.50789203]
[1728223385681,0.0112,62235.0,62234.0,0.064276]
[1728223385870,0.0112,62239.0,62237.0,0.064272]
[1728223386071,0.064269,62241.0,62238.0,0.19560451]
[1728223386267,0.064269,62241.0,62239.0,0.09919436]
[1728223386482,0.064269,62241.0,62240.0,0.09919436]
[1728223387179,0.174269,62241.0,62240.0,0.09919436]
[1728223387680,0.175269,62241.0,62240.0,0.09919436]
[1728223388079,0.176269,62241.0,62240.0,0.09919436]
[1728223388380,0.176269,62241.0,62240.0,0.16304014]
[1728223388577,0.112,62241.0,62240.0,0.06427]
[1728223390679,0.176269,62241.0,62240.0,0.06427]
[1728223390873,0.176269,62241.0,62240.0,0.11246303]
[1728223391677,0.176269,62241.0,62240.0,0.06427]
[1728223393483,0.176269,62241.0,62240.0,0.11246395]
[1728223396775,0.176269,62241.0,62240.0,0.16302765]
[1728223398091,0.176269,62241.0,62240.0,0.16303033]
[1728223401795,0.175269,62241.0,62240.0,0.16303033]
[1728223402193,0.175269,62241.0,62240.0,0.25944048]
[1728223402398,0.175269,62241.0,62240.0,0.16303033]
[1728223402691,0.176269,62241.0,62240.0,0.16303033]
[1728223402891,0.175269,62241.0,62240.0,0.16303033]
[1728223403691,0.176269,62241.0,62240.0,0.11247888]
[1728223406294,0.176269,62241.0,62240.0,0.06427]
[1728223407398,0.066269,62241.0,62240.0,0.06427]
[1728223407597,0.176269,62241.0,62240.0,0.06427]
[1728223408689,0.176269,62241.0,62240.0,0.112497]
[1728223408892,0.176269,62241.0,62240.0,0.048227]
[1728223410799,0.176269,62241.0,62240.0,0.09888952]
[1728223415993,0.537069,62241.0,62240.0,0.09888952]
[1728223417496,0.176269,62241.0,62240.0,0.09887906]
[1728223417704,0.537069,62241.0,62240.0,0.09887906]
[1728223418689,0.112,62241.0,62239.0,0.04821999]
[1728223418895,0.06427,62240.0,62239.0,0.04821999]
[1728223419203,0.42507,62240.0,62239.0,0.04821999]
[1728223421401,0.064272,62238.0,62237.0,0.06429332]
[1728223421602,0.174272,62238.0,62237.0,0.06429332]
[1728223422003,0.064272,62238.0,62237.0,0.06429332]
[1728223422309,0.174272,62238.0,62237.0,0.06429332]
[1728223422808,0.174272,62238.0,62237.0,0.06529332]
[1728223425901,0.174272,62238.0,62237.0,0.19628969]
[1728223427424,0.174272,62238.0,62237.0,0.09987954]
[1728223427605,0.064272,62238.0,62237.0,0.09987954]
[1728223427804,0.174272,62238.0,62237.0,0.09987954]
[1728223428502,0.11,62238.0,62237.0,0.09987954]
[1728223428702,0.11,62238.0,62237.0,0.26056269]
[1728223429902,0.11,62238.0,62237.0,0.16415254]
[1728223431910,0.11,62238.0,62237.0,0.16407176]
[1728223433111,0.174272,62238.0,62237.0,0.16407176]
[1728223436614,0.174272,62238.0,62237.0,0.16405993]
[1728223437111,0.064272,62238.0,62237.0,0.16405993]
[1728223437316,0.174272,62238.0,62237.0,0.26049881]
[1728223437613,0.174272,62238.0,62237.0,0.16405993]
[1728223440622,0.11,62238.0,62237.0,0.28180621]
[1728223440916,0.11,62238.0,62237.0,0.065273]
[1728223441115,0.15710447,62238.0,62237.0,0.065273]
[1728223441306,0.11,62238.0,62237.0,0.065273]
[1728223444108,0.15706266,62238.0,62237.0,0.065273]
[1728223445612,0.11,62238.0,62237.0,0.065273]
[1728223446210,0.15709656,62238.0,62237.0,0.065273]
[1728223446614,0.22136856,62238.0,62237.0,0.001]
[1728223446806,0.22132354,62238.0,62237.0,0.001]
[1728223449015,0.174272,62238.0,62237.0,0.001]
[1728223450428,0.174272,62238.0,62237.0,0.06528544]
[1728223451218,0.174272,62238.0,62237.0,0.001]
[1728223452728,0.174272,62238.0,62237.0,0.06528434]
[1728223455724,0.174272,62238.0,62237.0,0.001]
[1728223464536,0.13018663,62242.0,62237.0,0.001]
[1728223464732,0.11,62238.0,62237.0,0.065273]
[1728223465331,0.06591763,62242.0,62237.0,0.001]
[1728223465635,0.1212,62242.0,62241.0,0.064269]
[1728223465836,0.11,62242.0,62241.0,0.064269]
[1728223467228,0.112,62242.0,62241.0,0.064269]
[1728223467729,0.114,62242.0,62241.0,0.064269]
[1728223469635,0.114,62242.0,62241.0,0.425069]
[1728223470538,0.112,62242.0,62241.0,0.425069]
[1728223470735,0.11,62242.0,62241.0,0.425069]
[1728223470937,0.11,62242.0,62241.0,0.426069]
[1728223471838,0.11,62242.0,62241.0,0.065269]
[1728223472141,0.11,62242.0,62241.0,0.12946581]
[1728223472343,0.11,62242.0,62241.0,0.065269]
[1728223475630,0.11,62242.0,62241.0,0.06747126]
[1728223476635,0.11,62242.0,62241.0,0.11561406]
[1728223477443,0.11,62242.0,62241.0,0.06747126]
[1728223477633,0.11,62242.0,62241.0,0.11561479]
[1728223478535,0.11,62242.0,62241.0,0.06747126]
[1728223492561,0.174268,62242.0,62241.0,0.06745743]
[1728223492947,0.174268,62242.0,62241.0,0.00320226]
[1728223494054,0.22152651,62242.0,62241.0,0.00320226]
[1728223494452,0.22152651,62242.0,62241.0,0.00220226]
[1728223494643,0.22352651,62242.0,62241.0,0.00220226]
[1728223496952,0.22542095,62242.0,62241.0,0.00220226]
[1728223497854,0.22541638,62242.0,62241.0,0.00220226]
[1728223498556,0.064276,62234.0,62233.0,0.428777]
[1728223498753,0.174276,62234.0,62233.0,0.425077]
[1728223499953,0.175276,62234.0,62233.0,0.425077]
[1728223500768,0.176276,62234.0,62233.0,0.426077]
[1728223503268,0.19942282,62234.0,62233.0,0.426077]
[1728223505168,0.19942282,62234.0,62233.0,0.065277]
[1728223506159,0.19942282,62234.0,62233.0,0.1294896]
[1728223506467,0.56022282,62234.0,62233.0,0.065277]
[1728223510065,0.45022282,62234.0,62233.0,0.065277]
[1728223510268,0.56022282,62234.0,62233.0,0.065277]
[1728223512172,0.002,62234.0,62233.0,0.536077]
[1728223512574,0.002,62234.0,62233.0,0.426077]
[1728223513069,0.0024,62234.0,62233.0,0.426077]
[1728223515369,0.0024,62234.0,62233.0,1.018117]
[1728223515964,0.0024,62234.0,62233.0,0.536077]
[1728223516365,0.0024,62234.0,62233.0,0.75181958]
[1728223517866,0.0024,62234.0,62233.0,0.77504512]
[1728223518067,0.0024,62234.0,62233.0,0.65772697]
[1728223518269,0.0024,62234.0,62233.0,0.55930254]
[1728223518572,0.1212,62238.0,62237.0,0.064273]
[1728223518772,0.11,62238.0,62237.0,0.25943373]
[1728223519681,0.1104,62238.0,62237.0,0.28035913]
[1728223520064,0.0004,62238.0,62237.0,1.47239913]
[1728223520571,0.0004,62238.0,62237.0,1.47339913]
[1728223521775,0.0004,62238.0,62237.0,0.87339913]
[1728223522277,0.0004,62238.0,62237.0,1.47339913]
[1728223522578,0.0112,62242.0,62241.0,0.064269]
[1728223522778,0.067957,62253.0,62241.0,0.064269]
[1728223522779,0.0112,62246.0,62245.0,0.064265]
[1728223522970,0.11,62247.0,62246.0,0.064264]
[1728223523167,0.11,62247.0,62246.0,0.16269833]
[1728223524183,0.11,62247.0,62246.0,0.24289881]
[1728223524682,0.0112,62250.0,62249.0,0.064261]
[1728223524882,0.11,62250.0,62249.0,0.11237911]
[1728223525067,0.01361045,62254.0,62247.0,0.06415748]
[1728223525267,0.03770282,62254.0,62252.0,0.064257]
[1728223525484,0.00241045,62254.0,62252.0,0.064257]
[1728223525984,0.00241045,62254.0,62250.0,0.04810495]
[1728223526169,0.00241045,62254.0,62253.0,0.064257]
[1728223526367,0.12641045,62254.0,62253.0,0.064257]
[1728223526763,0.14041045,62254.0,62253.0,0.064257]
[1728223526977,0.12641045,62254.0,62253.0,0.064257]
[1728223527180,0.14041045,62254.0,62253.0,0.064257]
[1728223527487,0.14041045,62254.0,62253.0,0.065257]
[1728223534982,0.03041045,62254.0,62253.0,0.065257]
[1728223535285,0.14041045,62254.0,62253.0,0.065257]
[1728223540182,0.14041045,62254.0,62253.0,0.0888302]
[1728223541189,0.14041045,62254.0,62253.0,0.13693515]
[1728223542176,0.14041045,62254.0,62253.0,0.0888302]
[1728223544380,0.03041045,62254.0,62253.0,0.0888302]
[1728223544579,0.14041045,62254.0,62253.0,0.0888302]
[1728223545488,0.03041045,62254.0,62253.0,0.29664051]
[1728223545792,0.028,62254.0,62253.0,0.29664051]
[1728223546095,0.028,62254.0,62253.0,0.65744051]
[1728223546392,0.028,62254.0,62253.0,0.68814051]
[1728223546595,0.028,62254.0,62253.0,0.5903302]
[1728223546891,0.014,62254.0,62253.0,0.5893302]
[1728223547081,0.028,62254.0,62253.0,0.5893302]
[1728223548098,0.0037,62260.0,62253.0,0.5893302]
[1728223548395,0.0037,62264.0,62259.0,0.11]
[1728223548578,0.11,62265.0,62264.0,0.064245]
[1728223550089,0.113,62265.0,62264.0,0.064245]
[1728223551078,0.114,62265.0,62264.0,0.064245]
[1728223551686,0.111,62265.0,62264.0,0.064245]
[1728223552795,0.11,62265.0,62264.0,0.064245]
[1728223553501,0.11,62265.0,62259.0,0.3608]
[1728223553798,0.11,62261.0,62259.0,0.42505]
[1728223553989,0.063,62260.0,62259.0,0.42505]
[1728223554790,0.173,62260.0,62259.0,0.42505]
[1728223555003,0.173,62260.0,62259.0,0.43105]
[1728223555789,0.173,62260.0,62259.0,0.07153439]
[1728223556590,0.173,62260.0,62259.0,0.07653439]
[1728223567209,0.063,62260.0,62259.0,0.07653439]
[1728223567398,0.173,62260.0,62259.0,0.07653439]
[1728223574208,0.173,62260.0,62259.0,0.14070355]
[1728223575103,0.173,62260.0,62259.0,0.07653439]
[1728223584613,0.2774346,62260.0,62259.0,0.07653439]
[1728223584811,0.22132593,62260.0,62259.0,0.07653439]
[1728223586310,0.27744647,62260.0,62259.0,0.07653439]
[1728223588816,0.27744647,62260.0,62259.0,0.07453439]
[1728223589611,0.173,62260.0,62259.0,0.07453439]
[1728223589823,0.27730911,62260.0,62259.0,0.07453439]
[1728223590715,0.27730911,62260.0,62259.0,0.07353439]
[1728223590909,0.27730911,62260.0,62259.0,0.06953439]
[1728223591112,0.27730911,62260.0,62259.0,0.07153439]
[1728223591306,0.27730911,62260.0,62259.0,0.06953439]
[1728223591812,0.173,62260.0,62259.0,0.13381691]
[1728223597312,0.173,62260.0,62259.0,0.06953439]
[1728223599121,0.063,62260.0,62259.0,0.06953439]
[1728223599319,0.173,62260.0,62259.0,0.06953439]
[1728223599715,0.22124451,62260.0,62259.0,0.06953439]
[1728223606629,0.04824451,62260.0,62259.0,0.06953439]
[1728223606820,0.11,62260.0,62259.0,0.24750819]
[1728223607633,0.11,62260.0,62259.0,0.16729674]
[1728223608138,0.0037,62265.0,62259.0,0.21304674]
[1728223608431,0.11,62264.0,62263.0,0.064246]
[1728223608825,0.11,62264.0,62263.0,0.06553039]
[1728223611523,0.11,62264.0,62263.0,0.06653039]
[1728223611524,0.116,62264.0,62263.0,0.06653039]
[1728223611925,0.123,62264.0,62263.0,0.06753039]
[1728223615132,0.123,62264.0,62263.0,0.11571313]
[1728223617043,0.013,62264.0,62263.0,0.11571313]
[1728223617227,0.013,62264.0,62263.0,0.11571185]
[1728223617434,0.123,62264.0,62263.0,0.11571077]
[1728223618328,0.013,62264.0,62263.0,0.06753039]
[1728223618534,0.123,62264.0,62263.0,0.06753039]
[1728223620140,0.187245,62264.0,62263.0,0.05146477]
[1728223620933,0.187245,62264.0,62263.0,0.00328439]
[1728223621941,0.29141068,62264.0,62263.0,0.00328439]
[1728223622334,0.23544649,62264.0,62263.0,0.00328439]
[1728223626446,0.23547107,62264.0,62263.0,0.00328439]
[1728223626744,0.29146281,62264.0,62263.0,0.00328439]
[1728223629745,0.187245,62264.0,62263.0,0.00328439]
[1728223630340,1.269085,62264.0,62263.0,0.00328439]
[1728223630648,0.669085,62264.0,62263.0,0.00328439]
[1728223632047,1.029885,62264.0,62263.0,0.00328439]
[1728223633947,0.548045,62264.0,62263.0,0.00328439]
[1728223634342,1.629885,62264.0,62263.0,0.00328439]
[1728223636756,1.73402507,62264.0,62263.0,0.00328439]
[1728223637655,1.13402507,62264.0,62263.0,0.00328439]
[1728223639755,1.13402719,62264.0,62263.0,0.00328439]
[1728223641056,1.13402689,62264.0,62263.0,0.00328439]
[1728223642859,0.65218689,62264.0,62263.0,0.00328439]
[1728223644960,0.548045,62264.0,62263.0,0.00328439]
[1728223649663,0.064255,62255.0,62254.0,0.0074]
[1728223649958,0.064262,62248.0,62247.0,0.00188]
[1728223650151,0.064263,62247.0,62246.0,0.00240948]
[1728223651257,0.425063,62247.0,62246.0,0.00240948]
[1728223651658,0.426063,62247.0,62246.0,0.01040948]
[1728223651960,0.47476345,62247.0,62246.0,0.01040948]
[1728223654157,0.47576345,62247.0,62246.0,0.01840948]
[1728223655969,0.47576345,62247.0,62246.0,0.080264]
[1728223656160,0.6090926,62247.0,62246.0,0.080264]
[1728223656463,0.56039215,62247.0,62246.0,0.080264]
[1728223657058,0.609016,62247.0,62246.0,0.080264]
[1728223657363,0.56039215,62247.0,62246.0,0.080264]
[1728223658659,0.56039215,62247.0,62246.0,0.016]
[1728223663052,0.56039215,62247.0,62246.0,0.080264]
[1728223663053,0.38612915,62247.0,62246.0,0.080264]
[1728223663257,0.002,62247.0,62246.0,0.080264]
[1728223671859,0.002,62247.0,62246.0,0.562224]
[1728223672073,0.002,62247.0,62246.0,0.080264]
[1728223682873,0.002,62247.0,62246.0,0.17730344]
[1728223683577,0.002,62247.0,62246.0,0.28730344]
[1728223683777,0.002,62247.0,62246.0,0.64810344]
[1728223684071,0.002,62247.0,62246.0,0.76351381]
[1728223685388,0.002,62247.0,62246.0,0.64810344]
[1728223687377,0.002,62247.0,62246.0,0.64787117]
[1728223689868,0.002,62247.0,62246.0,0.190264]
[1728223697181,0.002,62247.0,62246.0,0.38338907]
[1728223697376,0.1212,62253.0,62252.0,0.064258]
[1728223697676,0.11,62253.0,62252.0,0.064258]
[1728223698768,0.11,62253.0,62252.0,0.067258]
[1728223699073,0.39474,62256.0,62252.0,0.113]
[1728223699271,0.3939,62256.0,62255.0,0.174255]
[1728223700675,0.03,62261.0,62260.0,0.064249]
[1728223700872,0.14,62261.0,62260.0,0.064249]
[1728223701272,0.03,62261.0,62260.0,0.174249]
[1728223702576,0.03,62261.0,62260.0,0.175249]
[1728223705376,0.142,62265.0,62264.0,0.064245]
[1728223705577,0.032,62265.0,62264.0,0.174245]
[1728223706185,0.142,62265.0,62264.0,0.174245]
[1728223706682,0.155,62265.0,62264.0,0.175245]
[1728223707074,0.168,62265.0,62264.0,0.176245]
[1728223712182,0.168,62265.0,62264.0,0.19982098]
[1728223715088,0.058,62265.0,62264.0,0.19982098]
[1728223715301,0.00240908,62278.0,62264.0,0.49637598]
[1728223715482,0.0327,62277.0,62276.0,0.064233]
[1728223716286,0.1427,62277.0,62276.0,0.064233]
[1728223717482,0.1427,62277.0,62266.0,0.06407551]
[1728223717684,0.11,62267.0,62266.0,0.064243]
[1728223718587,0.11,62267.0,62266.0,0.076243]
[1728223719398,0.11,62267.0,62266.0,0.071243]
[1728223720888,0.11,62267.0,62266.0,0.076243]
[1728223721094,0.11,62267.0,62266.0,0.075243]
[1728223721295,0.127739,62270.0,62266.0,0.075243]
[1728223721594,0.127739,62270.0,62267.0,0.064242]
[1728223723498,0.11,62268.0,62267.0,0.064242]
[1728223724301,0.11,62268.0,62267.0,0.068242]
[1728223724701,0.11,62268.0,62267.0,0.069242]
[1728223724908,0.11,62268.0,62267.0,0.073242]
[1728223742015,0.15999327,62268.0,62267.0,0.073242]
[1728223747125,0.21808142,62268.0,62267.0,0.073242]
[1728223750014,0.11,62268.0,62267.0,0.24987283]
[1728223751920,0.064242,62267.0,62266.0,0.03935601]
[1728223752125,0.064245,62264.0,62263.0,0.00240879]
[1728223752325,0.174245,62264.0,62263.0,0.00240879]
[1728223753521,0.174245,62264.0,62263.0,0.01140879]
[1728223754021,0.174245,62264.0,62263.0,0.01940879]
[1728223756117,0.536045,62264.0,62263.0,0.01740879]
[1728223759734,1.617885,62264.0,62263.0,0.01740879]
[1728223760832,1.017885,62264.0,62263.0,0.01740879]
[1728223763534,1.617885,62264.0,62263.0,0.01740879]
[1728223764936,1.257085,62264.0,62263.0,0.01740879]
[1728223765140,1.257085,62264.0,62256.0,0.0112]
[1728223765141,1.66763097,62264.0,62256.0,0.0112]
[1728223765432,0.064256,62254.0,62253.0,0.0112]
[1728223765634,0.174256,62254.0,62251.0,0.426938]
[1728223765831,0.174256,62254.0,62251.0,0.425058]
[1728223766927,0.174256,62254.0,62251.0,0.439058]
[1728223767534,0.175256,62254.0,62251.0,0.453058]
[1728223768134,0.425058,62252.0,62251.0,0.028]
[1728223769439,0.425058,62252.0,62251.0,0.014]
[1728223769631,0.427058,62252.0,62251.0,0.021]
[1728223773237,0.427058,62252.0,62251.0,0.085259]
[1728223773439,0.4728,62252.0,62251.0,0.085259]
[1728223790358,0.4728,62252.0,62251.0,0.14950646]
[1728223791057,0.4728,62252.0,62251.0,0.085259]
[1728223791263,0.4728,62252.0,62251.0,0.14950646]
[1728223791670,0.112,62252.0,62251.0,0.14950646]
[1728223792166,0.002,62252.0,62251.0,0.085259]
[1728223792363,0.002,62252.0,62251.0,0.26203367]
[1728223792568,0.002,62252.0,62251.0,0.18182839]
[1728223795274,0.002,62252.0,62251.0,0.085259]
[1728223796072,0.002,62252.0,62251.0,1.277179]
[1728223796374,0.36164,62260.0,62259.0,0.06425]
[1728223796375,0.3608,62260.0,62259.0,0.06425]
[1728223797468,0.3608,62260.0,62259.0,0.09505]
[1728223797670,0.3618,62260.0,62259.0,0.10705]
[1728223798074,0.3628,62260.0,62259.0,0.11805]
[1728223800473,0.3628,62260.0,62259.0,0.14167191]
[1728223801278,0.3628,62260.0,62259.0,0.11805]
[1728223802473,0.3628,62260.0,62259.0,0.16617915]
[1728223806284,0.3628,62260.0,62259.0,0.11805]
[1728223810182,0.00610956,62267.0,62259.0,0.16616611]
[1728223810382,0.00240956,62267.0,62266.0,0.064243]
[1728223810777,0.11240956,62267.0,62266.0,0.064243]
[1728223811280,0.11340956,62267.0,62266.0,0.064243]
[1728223811679,0.11440956,62267.0,62266.0,0.064243]
[1728223811878,0.11340956,62267.0,62266.0,0.068243]
[1728223812584,0.11240956,62267.0,62266.0,0.072243]
[1728223813484,0.3608,62268.0,62266.0,0.008]
[1728223813683,0.47164,62277.0,62273.0,0.064236]
[1728223813905,0.47164,62277.0,62275.0,0.064234]
[1728223814094,0.11,62276.0,62275.0,0.064234]
[1728223814277,0.3608,62277.0,62276.0,0.064233]
[1728223814792,0.4708,62277.0,62276.0,0.064233]
[1728223815692,0.4848,62277.0,62276.0,0.065233]
[1728223816198,0.124,62277.0,62276.0,0.065233]
[1728223816777,0.134,62277.0,62276.0,0.066233]
[1728223829688,0.134,62277.0,62276.0,0.547953]
[1728223829689,0.024,62277.0,62276.0,0.547953]
[1728223829992,0.0004,62282.0,62280.0,0.064229]
[1728223830181,0.0004,62282.0,62280.0,0.11]
[1728223830383,0.0004,62282.0,62281.0,0.064228]
[1728223830787,0.0004,62282.0,62281.0,0.11224017]
[1728223831396,0.0074,62288.0,62281.0,0.11224017]
[1728223831397,0.0074,62288.0,62286.0,0.064223]
[1728223831587,0.0004,62289.0,62286.0,0.174223]
[1728223832997,0.0004,62289.0,62286.0,0.61564614]
[1728223833192,0.0004,62289.0,62288.0,0.064221]
[1728223834295,0.0004,62292.0,62291.0,0.064217]
[1728223834497,0.0004,62292.0,62291.0,0.174217]
[1728223834797,0.008,62304.0,62298.0,0.06421]
[1728223834996,0.1104,62306.0,62299.0,0.11]
[1728223835190,0.1104,62306.0,62300.0,0.064208]
[1728223835393,0.11,62303.0,62300.0,0.064208]
[1728223835589,0.3612,62305.0,62300.0,0.064208]
[1728223835795,0.11,62303.0,62300.0,0.064208]
[1728223837793,0.11,62303.0,62300.0,0.065208]
[1728223837989,0.11,62303.0,62300.0,0.001]
[1728223837990,0.064607,62301.0,62300.0,0.001]
[1728223838398,0.065607,62301.0,62300.0,0.002]
[1728223840607,0.08906292,62301.0,62300.0,0.002]
[1728223842889,0.02485592,62301.0,62300.0,0.002]
[1728223847309,0.38565592,62301.0,62300.0,0.002]
[1728223847610,0.41356372,62301.0,62300.0,0.066208]
[1728223847809,0.3622,62301.0,62300.0,0.066208]
[1728223848009,0.4722,62301.0,62300.0,0.066208]
[1728223860323,0.3622,62301.0,62300.0,0.066208]
[1728223861120,0.3622,62301.0,62300.0,0.097908]
[1728223863615,0.41387556,62301.0,62300.0,0.097908]
[1728223864013,0.41387551,62301.0,62300.0,0.097908]
[1728223864611,0.05307551,62301.0,62300.0,0.097908]
[1728223869025,0.05323108,62301.0,62300.0,0.097908]
[1728223870630,0.0014,62301.0,62300.0,0.097908]
[1728223871624,0.1114,62301.0,62300.0,0.097908]
[1728223876431,0.0014,62301.0,62300.0,0.097908]
[1728223877630,0.0014,62301.0,62300.0,0.14604714]
[1728223878436,0.0014,62301.0,62300.0,0.25604714]
[1728223878619,0.0014,62301.0,62300.0,0.207908]
[1728223879129,0.0014,62301.0,62300.0,0.27214436]
[1728223879333,0.0014,62301.0,62300.0,0.207908]
[1728223882534,0.0004,62305.0,62300.0,0.1437]
[1728223882735,0.0004,62305.0,62304.0,0.064204]
[1728223885633,0.0004,62305.0,62304.0,0.065204]
[1728223885939,0.0004,62305.0,62304.0,0.066204]
[1728223888240,0.11272264,62305.0,62304.0,0.066204]
[1728223888835,0.05237603,62305.0,62304.0,0.066204]
[1728223889429,0.0004,62305.0,62304.0,0.066204]
[1728223896138,0.0004,62305.0,62304.0,0.066604]
[1728223900538,0.11293154,62305.0,62304.0,0.066604]
[1728223905257,0.0524727,62305.0,62304.0,0.066604]
[1728223905443,0.0004,62305.0,62304.0,0.066604]
[1728223906050,0.05259445,62305.0,62304.0,0.066604]
[1728223908151,0.05259445,62305.0,62304.0,0.065604]
[1728223908353,0.05259445,62305.0,62304.0,0.067604]
[1728223908553,0.0004,62305.0,62304.0,0.068604]
[1728223910452,0.0004,62305.0,62304.0,0.429404]
[1728223912058,0.0004,62305.0,62304.0,0.068604]
[1728223912249,0.0004,62305.0,62304.0,0.429404]
[1728223913260,0.0004,62305.0,62304.0,0.068604]
[1728223913458,0.0004,62305.0,62304.0,0.429404]
[1728223914354,0.0004,62305.0,62304.0,0.068604]
[1728223914559,0.0004,62305.0,62304.0,0.429404]
[1728223914754,0.0004,62305.0,62304.0,0.068604]
[1728223914955,0.0004,62305.0,62304.0,0.429404]
[1728223920265,0.0004,62305.0,62304.0,0.068604]
[1728223920565,0.0004,62305.0,62304.0,0.429404]
[1728223921463,0.0004,62305.0,62304.0,0.068604]
[1728223921661,0.0004,62305.0,62304.0,0.429404]
[1728223923564,0.05259272,62305.0,62304.0,0.539404]
[1728223926458,0.05259272,62305.0,62304.0,0.537404]
[1728223926757,0.05259272,62305.0,62304.0,0.541404]
[1728223927167,0.05259272,62305.0,62304.0,0.543404]
[1728223928568,0.0526235,62305.0,62304.0,0.543404]
[1728223928981,0.0526235,62305.0,62304.0,0.182604]
[1728223930665,0.0004,62305.0,62304.0,0.182604]
[1728223932976,0.0004,62307.0,62304.0,0.1184]
[1728223933277,0.0004,62308.0,62307.0,0.064201]
[1728223933469,0.0004,62308.0,62307.0,0.23841242]
[1728223935065,0.0004,62308.0,62307.0,0.23941242]
[1728223935265,0.0004,62308.0,62307.0,0.175201]
[1728223937385,0.0004,62308.0,62307.0,0.176201]
[1728223938072,0.0004,62308.0,62307.0,0.19953253]
[1728223938488,0.0004,62308.0,62307.0,0.15375788]
[1728223938777,0.1132285,62308.0,62307.0,0.08953253]
[1728223942885,0.11323491,62308.0,62307.0,0.08953253]
[1728223945587,0.11323491,62308.0,62307.0,0.19953253]
[1728223945785,0.0004,62310.0,62307.0,0.26375788]
[1728223945981,0.0004,62310.0,62309.0,0.12842281]
[1728223947491,0.0004,62310.0,62309.0,0.49022281]
[1728223947676,0.0004,62310.0,62309.0,0.49122281]
[1728223951291,0.00240784,62314.0,62309.0,0.426999]
[1728223951482,0.00240784,62314.0,62312.0,0.174196]
[1728223952782,0.05292007,62313.0,62312.0,0.174196]
[1728223952986,0.05292007,62313.0,62312.0,0.175196]
[1728223953292,0.11393183,62313.0,62312.0,0.175196]
[1728223953798,0.11393183,62313.0,62312.0,0.176196]
[1728223955885,0.05292007,62313.0,62312.0,0.176196]
[1728223957485,0.05293614,62313.0,62312.0,0.176196]
[1728223960896,0.0004,62313.0,62312.0,0.176196]
[1728223963399,0.0037,62318.0,62317.0,0.064191]
[1728223963589,0.0041,62322.0,62321.0,0.064187]
[1728223963788,0.0004,62322.0,62321.0,0.174187]
[1728223963999,0.0004,62322.0,62321.0,0.22225087]
[1728223964194,0.0004,62322.0,62321.0,0.11225063]
[1728223964398,0.0327,62322.0,62321.0,0.11225063]
[1728223965203,0.0327,62322.0,62321.0,0.064187]
[1728223965588,0.0327,62322.0,62321.0,0.0876135]
[1728223966503,0.0327,62322.0,62321.0,0.0906135]
[1728223966898,0.0327,62322.0,62321.0,0.0936135]
[1728223969501,0.0327,62322.0,62321.0,0.2036135]
[1728223972107,0.0327,62322.0,62321.0,0.2040135]
[1728223976306,0.09388751,62322.0,62321.0,0.2040135]
[1728223976610,0.1465878,62322.0,62321.0,0.2040135]
[1728223977103,0.14659128,62322.0,62321.0,0.2040135]
[1728223978203,0.0854019,62322.0,62321.0,0.2040135]
[1728223979018,0.1954019,62322.0,62321.0,0.0940135]
[1728223979209,0.1954019,62322.0,62321.0,0.070587]
[1728223981322,0.1954019,62322.0,62321.0,0.0064]
[1728223981323,0.25652334,62322.0,62321.0,0.0064]
[1728223982913,0.30307082,62322.0,62321.0,0.00231165]
[1728223983116,0.1427,62322.0,62321.0,0.00231165]
[1728223991028,0.25633022,62322.0,62321.0,0.00231165]
[1728223993116,0.1952811,62322.0,62321.0,0.00231165]
[1728223993619,0.25633893,62322.0,62321.0,0.00231165]
[1728223994827,0.32589331,62322.0,62321.0,0.00231165]
[1728223995025,0.11,62320.0,62318.0,0.064189]
[1728223995226,0.22403893,62319.0,62313.0,0.064195]
[1728223995428,0.11,62314.0,62312.0,0.36296]
[1728223995634,0.11363893,62313.0,62312.0,0.3608]
[1728223997129,0.11363893,62313.0,62312.0,0.3728]